[Event "NJSK 2022 Jeugd B"]
[Site "Almelo, Netherlands"]
[Date "2022.05.07"]
[Round "7.2"]
[White "Groen, Jari"]
[Black "Van der Hagen, Loek"]
[Result "0-1"]
[TimeControl "90min/40moves + 30min + 30sec/move"]
[WhiteElo "1750"]
[BlackElo "2071"]

1. e4 {[%clk 01:29:10]} {[%emt 00:01:49]} c5 {[%clk 01:30:56]} {[%emt
00:00:04]} 2. c4 {[%clk 01:29:09]} {[%emt 00:00:31]} Nc6 {[%clk 01:30:01]}
{[%emt 00:01:26]} 3. Ne2 {[%clk 01:29:14]} {[%emt 00:00:25]} Qb6 {[%clk
01:22:07]} {[%emt 00:08:24]} 4. Nbc3 {[%clk 01:24:19]} {[%emt 00:05:25]} g6
{[%clk 01:22:16]} {[%emt 00:00:21]} 5. d3 {[%clk 01:17:58]} {[%emt 00:06:51]}
Bg7 {[%clk 01:20:34]} {[%emt 00:02:11]} 6. g3 {[%clk 01:12:21]} {[%emt
00:06:08]} d6 {[%clk 01:19:13]} {[%emt 00:01:51]} 7. Bg2 {[%clk 01:11:33]}
{[%emt 00:01:17]} Nf6 {[%clk 01:19:33]} {[%emt 00:00:10]} 8. O-O {[%clk
01:10:34]} {[%emt 00:01:29]} O-O {[%clk 01:19:59]} {[%emt 00:00:05]} 9. f4
{[%clk 01:05:45]} {[%emt 00:05:18]} Bg4 {[%clk 01:20:11]} {[%emt 00:00:20]} 10.
h3 {[%clk 01:02:49]} {[%emt 00:03:25]} Bxe2 {[%clk 01:20:18]} {[%emt 00:00:22]}
11. Nxe2 {[%clk 01:02:17]} {[%emt 00:01:02]} Ne8 {[%clk 01:19:53]} {[%emt
00:00:56]} 12. Rb1 {[%clk 00:55:05]} {[%emt 00:07:41]} Nc7 {[%clk 01:19:52]}
{[%emt 00:00:31]} 13. Be3 {[%clk 00:53:03]} {[%emt 00:02:32]} Qa5 {[%clk
01:16:53]} {[%emt 00:03:30]} 14. a3 {[%clk 00:36:32]} {[%emt 00:17:01]} Ne6
{[%clk 01:01:41]} {[%emt 00:15:42]} 15. f5 {[%clk 00:32:58]} {[%emt 00:04:03]}
Ned4 {[%clk 01:01:55]} {[%emt 00:00:17]} 16. g4 {[%clk 00:31:38]} {[%emt
00:01:49]} Nxe2+ {[%clk 00:57:23]} {[%emt 00:05:03]} 17. Qxe2 {[%clk 00:32:01]}
{[%emt 00:00:07]} Bd4 {[%clk 00:57:26]} {[%emt 00:00:26]} 18. g5 {[%clk
00:29:13]} {[%emt 00:03:19]} Rab8 {[%clk 00:30:20]} {[%emt 00:27:37]} 19. f6
{[%clk 00:16:11]} {[%emt 00:13:31]} b5 {[%clk 00:28:38]} {[%emt 00:02:13]} 20.
Bxd4 {[%clk 00:12:14]} {[%emt 00:04:26]} Nxd4 {[%clk 00:26:38]} {[%emt
00:02:30]} 21. Qf2 {[%clk 00:12:30]} {[%emt 00:00:14]} exf6 {[%clk 00:26:27]}
{[%emt 00:00:41]} 22. gxf6 {[%clk 00:12:22]} {[%emt 00:00:38]} bxc4 {[%clk
00:26:10]} {[%emt 00:00:47]} 23. dxc4 {[%clk 00:12:05]} {[%emt 00:00:48]} Rb3
{[%clk 00:22:51]} {[%emt 00:03:48]} 24. Rbd1 {[%clk 00:09:11]} {[%emt
00:03:24]} h5 {[%clk 00:20:49]} {[%emt 00:02:32]} 25. Qh4 {[%clk 00:06:44]}
{[%emt 00:02:56]} Kh7 {[%clk 00:09:53]} {[%emt 00:11:27]} 26. e5 {[%clk
00:05:42]} {[%emt 00:01:32]} dxe5 {[%clk 00:09:18]} {[%emt 00:01:05]} 27. Be4
{[%clk 00:01:03]} {[%emt 00:05:09]} Kh6 {[%clk 00:08:51]} {[%emt 00:00:57]} 28.
Kh1 {[%clk 00:00:37]} {[%emt 00:00:56]} g5 {[%clk 00:04:12]} {[%emt 00:05:09]}
29. Qf2 {[%clk 00:00:54]} {[%emt 00:00:12]} Rxh3+ {[%clk 00:04:37]} {[%emt
00:00:06]} 30. Kg2 {[%clk 00:01:14]} {[%emt 00:00:10]} Rh4 {[%clk 00:04:37]}
{[%emt 00:00:30]} 31. Rxd4 {[%clk 00:00:53]} {[%emt 00:00:51]} exd4 {[%clk
00:04:31]} {[%emt 00:00:36]} 32. Qf5 {[%clk 00:01:02]} {[%emt 00:00:21]} Rxe4
{[%clk 00:04:28]} {[%emt 00:00:33]} 33. Qxe4 {[%clk 00:01:27]} {[%emt
00:00:05]} Qd2+ {[%clk 00:04:19]} {[%emt 00:00:40]} 34. Rf2 {[%clk 00:01:41]}
{[%emt 00:00:15]} Qe3 {[%clk 00:04:22]} {[%emt 00:00:27]} 35. Qb7 {[%clk
00:00:51]} {[%emt 00:01:20]} g4 {[%clk 00:04:05]} {[%emt 00:00:47]} 36. Qxa7
{[%clk 00:00:47]} {[%emt 00:00:34]} Re8 {[%clk 00:04:21]} {[%emt 00:00:14]} 37.
Qxf7 {[%clk 00:00:34]} {[%emt 00:00:43]} Qh3+ {[%clk 00:04:48]} {[%emt
00:00:03]} 0-1

[Event "NJSK 2022 Jeugd B"]
[Site "Almelo, Netherlands"]
[Date "2022.05.07"]
[Round "7.3"]
[White "Labruyere, Roger"]
[Black "Achuthan, Dylan"]
[Result "1-0"]
[TimeControl "90min/40moves + 30min + 30sec/move"]
[WhiteElo "2199"]
[BlackElo "1995"]

1. e4 {[%clk 01:30:58]} c5 {[%clk 01:30:54]} {[%emt 00:00:06]} 2. c3 {[%clk
01:31:23]} {[%emt 00:00:05]} d5 {[%clk 01:31:20]} {[%emt 00:00:04]} 3. exd5
{[%clk 01:31:49]} {[%emt 00:00:04]} Qxd5 {[%clk 01:31:45]} {[%emt 00:00:05]} 4.
d4 {[%clk 01:32:16]} {[%emt 00:00:04]} Nc6 {[%clk 01:32:08]} {[%emt 00:00:06]}
5. Nf3 {[%clk 01:32:39]} {[%emt 00:00:07]} Bg4 {[%clk 01:32:33]} {[%emt
00:00:05]} 6. Be2 {[%clk 01:33:04]} {[%emt 00:00:04]} e6 {[%clk 01:32:53]}
{[%emt 00:00:11]} 7. Na3 {[%clk 01:33:18]} {[%emt 00:00:16]} Nf6 {[%clk
01:30:47]} {[%emt 00:02:37]} 8. Be3 {[%clk 01:31:28]} {[%emt 00:02:18]} cxd4
{[%clk 01:13:43]} {[%emt 00:17:34]} 9. Nb5 {[%clk 01:31:01]} {[%emt 00:00:58]}
Qd7 {[%clk 01:07:14]} {[%emt 00:06:59]} 10. Nbxd4 {[%clk 01:30:55]} {[%emt
00:00:37]} Be7 {[%clk 00:40:34]} {[%emt 00:27:10]} 11. h3 {[%clk 01:29:34]}
{[%emt 00:01:50]} Bh5 {[%clk 00:38:59]} {[%emt 00:02:05]} 12. g4 {[%clk
01:28:43]} {[%emt 00:01:20]} Bg6 {[%clk 00:37:57]} {[%emt 00:01:33]} 13. Bb5
{[%clk 01:09:39]} {[%emt 00:19:33]} Qc7 {[%clk 00:35:34]} {[%emt 00:02:54]} 14.
Qa4 {[%clk 01:08:38]} {[%emt 00:01:31]} Be4 {[%clk 00:35:42]} {[%emt 00:00:22]}
15. g5 {[%clk 01:07:20]} {[%emt 00:01:48]} Bxf3 {[%clk 00:32:08]} {[%emt
00:04:04]} 16. Nxf3 {[%clk 01:07:32]} {[%emt 00:00:18]} Nd5 {[%clk 00:31:39]}
{[%emt 00:00:59]} 17. Bd2 {[%clk 01:01:26]} {[%emt 00:06:35]} O-O {[%clk
00:22:59]} {[%emt 00:09:11]} 18. Qe4 {[%clk 00:56:53]} {[%emt 00:05:01]} Qd6
{[%clk 00:16:48]} {[%emt 00:06:43]} 19. O-O-O {[%clk 00:49:38]} {[%emt
00:07:44]} f5 {[%clk 00:12:32]} {[%emt 00:04:47]} 20. Qe2 {[%clk 00:42:00]}
{[%emt 00:08:08]} Nf4 {[%clk 00:07:26]} {[%emt 00:05:36]} 21. Qc4 {[%clk
00:36:52]} {[%emt 00:05:37]} Nd5 {[%clk 00:05:52]} {[%emt 00:02:04]} 22. Rhe1
{[%clk 00:35:45]} {[%emt 00:01:37]} Rac8 {[%clk 00:02:33]} {[%emt 00:03:50]} 23.
Qe2 {[%clk 00:34:26]} {[%emt 00:01:49]} Nd8 {[%clk 00:02:36]} {[%emt 00:00:27]}
24. Ne5 {[%clk 00:24:24]} {[%emt 00:10:32]} a6 {[%clk 00:01:20]} {[%emt
00:01:47]} 25. Bc4 {[%clk 00:22:57]} {[%emt 00:01:55]} b5 {[%clk 00:01:18]}
{[%emt 00:00:33]} 26. Bxd5 {[%clk 00:20:20]} {[%emt 00:03:07]} Qxd5 {[%clk
00:01:33]} {[%emt 00:00:15]} 27. Kb1 {[%clk 00:19:47]} {[%emt 00:01:03]} Nc6
{[%clk 00:00:37]} {[%emt 00:01:26]} 28. Nd3 {[%clk 00:17:58]} {[%emt 00:02:19]}
Nd8 {[%clk 00:00:32]} {[%emt 00:00:35]} 29. Bf4 {[%clk 00:16:31]} {[%emt
00:01:56]} Qc4 {[%clk 00:00:38]} {[%emt 00:00:24]} 30. Qf3 {[%clk 00:12:55]}
{[%emt 00:04:06]} b4 {[%clk 00:00:37]} {[%emt 00:00:32]} 31. Ne5 {[%clk
00:12:56]} {[%emt 00:00:29]} Qb5 {[%clk 00:00:53]} {[%emt 00:00:14]} 32. c4
{[%clk 00:11:49]} {[%emt 00:01:37]} Qa5 {[%clk 00:01:01]} {[%emt 00:00:21]} 33.
b3 {[%clk 00:10:31]} {[%emt 00:01:49]} Re8 {[%clk 00:00:52]} {[%emt 00:00:39]}
34. Rd7 {[%clk 00:08:57]} {[%emt 00:02:04]} Qc5 {[%clk 00:00:47]} {[%emt
00:00:34]} 35. h4 {[%clk 00:06:36]} {[%emt 00:02:51]} Nc6 {[%clk 00:00:45]}
{[%emt 00:00:34]} 36. Nxc6 {[%clk 00:06:36]} {[%emt 00:00:29]} Qxc6 {[%clk
00:00:54]} {[%emt 00:00:21]} 37. Qxc6 {[%clk 00:06:21]} {[%emt 00:00:45]} Rxc6
{[%clk 00:01:23]} {[%emt 00:00:01]} 38. Red1 {[%emt 00:02:00]} Bf8 {[%clk
00:00:47]} 39. Be5 {[%clk 00:05:59]} {[%emt 00:00:28]} Re7 {[%clk 00:00:41]}
{[%emt 00:00:36]} 40. f4 {[%clk 00:04:43]} {[%emt 00:01:45]} Kf7 {[%clk
00:00:49]} {[%emt 00:00:23]} 41. h5 {[%clk 00:04:43]} {[%emt 00:00:30]} Rb6
{[%clk 00:22:20]} {[%emt 00:09:00]} 42. Rd8 {[%clk 00:28:25]} {[%emt 00:06:47]}
g6 {[%clk 00:19:20]} {[%emt 00:03:30]} 43. hxg6+ {[%clk 00:28:13]} {[%emt
00:00:42]} hxg6 {[%clk 00:19:41]} {[%emt 00:00:09]} 44. Rh1 {[%clk 00:28:36]}
{[%emt 00:00:07]} 1-0

[Event "NJSK 2022 Jeugd B"]
[Site "Almelo, Netherlands"]
[Date "2022.05.07"]
[Round "7.4"]
[White "Bakija, Alan"]
[Black "Smid, Jelle"]
[Result "1-0"]
[TimeControl "90min/40moves + 30min + 30sec/move"]
[WhiteElo "1868"]
[BlackElo "1450"]

1. Nf3 {[%clk 01:30:57]} {[%emt 00:00:02]} f5 {[%clk 01:30:53]} {[%emt
00:00:07]} 2. c4 {[%clk 01:31:23]} {[%emt 00:00:05]} Nf6 {[%clk 01:31:15]}
{[%emt 00:00:08]} 3. g3 {[%clk 01:31:50]} {[%emt 00:00:04]} d6 {[%clk
01:31:35]} {[%emt 00:00:10]} 4. d4 {[%clk 01:32:15]} {[%emt 00:00:04]} e6
{[%clk 01:31:59]} {[%emt 00:00:07]} 5. Bg2 {[%clk 01:32:38]} {[%emt 00:00:06]}
Be7 {[%clk 01:32:23]} {[%emt 00:00:06]} 6. O-O {[%clk 01:33:01]} {[%emt
00:00:06]} O-O {[%clk 01:32:49]} {[%emt 00:00:05]} 7. b3 {[%clk 01:33:16]}
{[%emt 00:00:16]} Ne4 {[%clk 01:31:54]} {[%emt 00:01:24]} 8. Bb2 {[%clk
01:33:32]} {[%emt 00:00:15]} Bf6 {[%clk 01:32:07]} {[%emt 00:00:17]} 9. Nbd2
{[%clk 01:33:56]} {[%emt 00:00:05]} Nxd2 {[%clk 01:30:12]} {[%emt 00:02:25]} 10.
Qxd2 {[%clk 01:34:20]} {[%emt 00:00:07]} Qe7 {[%clk 01:29:14]} {[%emt
00:01:28]} 11. Ne1 {[%clk 01:16:47]} {[%emt 00:18:03]} e5 {[%clk 01:25:56]}
{[%emt 00:03:47]} 12. dxe5 {[%clk 01:07:01]} {[%emt 00:10:16]} dxe5 {[%clk
01:26:14]} {[%emt 00:00:11]} 13. Nd3 {[%clk 01:05:20]} {[%emt 00:02:12]} Nd7
{[%clk 01:12:38]} {[%emt 00:14:06]} 14. e4 {[%clk 00:51:00]} {[%emt 00:14:50]}
f4 {[%clk 01:07:55]} {[%emt 00:05:12]} 15. gxf4 {[%clk 00:49:06]} {[%emt
00:02:25]} exf4 {[%clk 01:07:58]} {[%emt 00:00:27]} 16. e5 {[%clk 00:48:49]}
{[%emt 00:00:47]} Bg5 {[%clk 01:05:25]} {[%emt 00:03:03]} 17. Bd5+ {[%clk
00:47:28]} {[%emt 00:01:52]} Kh8 {[%clk 01:05:25]} {[%emt 00:00:29]} 18. f3
{[%clk 00:47:28]} {[%emt 00:00:31]} Rd8 {[%clk 01:00:57]} {[%emt 00:04:58]} 19.
Qg2 {[%clk 00:36:20]} {[%emt 00:11:37]} Nf8 {[%clk 00:56:39]} {[%emt 00:04:48]}
20. Ba3 {[%clk 00:33:29]} {[%emt 00:03:22]} Qxa3 {[%clk 00:55:48]} {[%emt
00:01:20]} 21. Qxg5 {[%clk 00:33:56]} {[%emt 00:00:04]} Be6 {[%clk 00:55:15]}
{[%emt 00:01:03]} 22. Nxf4 {[%clk 00:32:22]} {[%emt 00:02:04]} Bg8 {[%clk
00:54:01]} {[%emt 00:01:44]} 23. Bxb7 {[%clk 00:10:55]} {[%emt 00:21:56]} Rab8
{[%clk 00:54:14]} {[%emt 00:00:18]} 24. Bd5 {[%clk 00:11:19]} {[%emt 00:00:07]}
Re8 {[%clk 00:54:28]} {[%emt 00:00:15]} 25. Kh1 {[%clk 00:09:29]} {[%emt
00:02:20]} Qb2 {[%clk 00:54:30]} {[%emt 00:00:28]} 26. Rae1 {[%clk 00:08:15]}
{[%emt 00:01:44]} Rb6 {[%clk 00:53:38]} {[%emt 00:01:22]} 27. Rg1 {[%clk
00:07:28]} {[%emt 00:01:17]} Ng6 {[%clk 00:53:54]} {[%emt 00:00:13]} 28. Bxg8
{[%clk 00:06:50]} {[%emt 00:01:08]} Kxg8 {[%clk 00:54:13]} {[%emt 00:00:10]} 29.
Nd5 {[%clk 00:04:45]} {[%emt 00:02:37]} Ra6 {[%clk 00:52:58]} {[%emt 00:01:45]}
30. Rg2 {[%clk 00:04:41]} {[%emt 00:00:33]} Rxe5 {[%clk 00:51:47]} {[%emt
00:01:42]} 31. Qd8+ {[%clk 00:04:58]} {[%emt 00:00:13]} Kf7 {[%clk 00:52:05]}
{[%emt 00:00:12]} 32. Rxb2 {[%clk 00:05:02]} {[%emt 00:00:26]} Rxe1+ {[%clk
00:52:22]} {[%emt 00:00:12]} 33. Kg2 {[%clk 00:05:30]} {[%emt 00:00:03]} 1-0

[Event "NJSK 2022 Jeugd B"]
[Site "Almelo, Netherlands"]
[Date "2022.05.07"]
[Round "7.5"]
[White "Wage, Sander"]
[Black "Niemeijer, Leon"]
[Result "1/2-1/2"]
[TimeControl "90min/40moves + 30min + 30sec/move"]
[WhiteElo "1859"]
[BlackElo "1693"]

1. e4 {[%clk 01:30:55]} {[%emt 00:00:04]} e6 {[%clk 01:30:48]} {[%emt
00:00:13]} 2. d4 {[%clk 01:31:21]} {[%emt 00:00:04]} d5 {[%clk 01:31:15]}
{[%emt 00:00:03]} 3. Bd3 {[%clk 01:31:48]} {[%emt 00:00:03]} dxe4 {[%clk
01:31:09]} {[%emt 00:00:36]} 4. Bxe4 {[%clk 01:32:14]} {[%emt 00:00:04]} Nf6
{[%clk 01:31:22]} {[%emt 00:00:17]} 5. Bf3 {[%clk 01:32:40]} {[%emt 00:00:04]}
c5 {[%clk 01:31:18]} {[%emt 00:00:34]} 6. Ne2 {[%clk 01:33:06]} {[%emt
00:00:03]} cxd4 {[%clk 01:30:58]} {[%emt 00:00:51]} 7. Nxd4 {[%clk 01:33:30]}
{[%emt 00:00:06]} Bc5 {[%clk 01:30:54]} {[%emt 00:00:32]} 8. Be3 {[%clk
01:33:35]} {[%emt 00:00:26]} e5 {[%clk 01:28:53]} {[%emt 00:02:31]} 9. Nb3
{[%clk 01:29:29]} {[%emt 00:04:36]} Qxd1+ {[%clk 01:28:04]} {[%emt 00:01:19]}
10. Bxd1 {[%clk 01:29:40]} {[%emt 00:00:19]} Bxe3 {[%clk 01:28:14]} {[%emt
00:00:20]} 11. fxe3 {[%clk 01:30:06]} {[%emt 00:00:04]} Nc6 {[%clk 01:27:56]}
{[%emt 00:00:48]} 12. Nc3 {[%clk 01:29:57]} {[%emt 00:00:39]} e4 {[%clk
01:26:40]} {[%emt 00:01:47]} 13. O-O {[%clk 01:22:41]} {[%emt 00:07:45]} O-O
{[%clk 01:11:40]} {[%emt 00:15:29]} 14. Nc5 {[%clk 01:21:07]} {[%emt 00:02:06]}
Re8 {[%clk 01:11:20]} {[%emt 00:00:49]} 15. Rf4 {[%clk 01:21:18]} {[%emt
00:00:18]} Nb4 {[%clk 01:09:13]} {[%emt 00:02:39]} 16. N5xe4 {[%clk 01:18:00]}
{[%emt 00:03:47]} Nxe4 {[%clk 01:07:29]} {[%emt 00:02:14]} 17. Rxe4 {[%clk
01:17:40]} {[%emt 00:00:50]} Rxe4 {[%clk 01:06:03]} 18. Nxe4 {[%clk 01:17:57]}
{[%emt 00:02:09]} Bf5 {[%clk 01:04:00]} {[%emt 00:02:32]} 19. Nd6 {[%clk
01:13:04]} {[%emt 00:05:24]} Bxc2 {[%clk 00:56:54]} {[%emt 00:07:36]} 20. Bxc2
{[%clk 01:13:29]} {[%emt 00:00:04]} Nxc2 {[%clk 00:56:52]} {[%emt 00:00:33]} 21.
Rc1 {[%clk 01:13:55]} {[%emt 00:00:04]} Nxe3 {[%clk 00:55:28]} {[%emt
00:01:54]} 22. Nxb7 {[%clk 01:11:35]} {[%emt 00:02:50]} f6 {[%clk 00:51:17]}
{[%emt 00:04:40]} 23. b3 {[%clk 01:06:58]} {[%emt 00:05:08]} Rb8 {[%clk
00:47:06]} {[%emt 00:04:41]} 24. Kf2 {[%clk 01:05:01]} {[%emt 00:02:26]} Ng4+
{[%clk 00:41:54]} {[%emt 00:05:42]} 25. Kg3 {[%clk 01:05:23]} {[%emt 00:00:08]}
Rxb7 {[%clk 00:42:08]} {[%emt 00:00:17]} 26. Kxg4 {[%clk 01:05:47]} {[%emt
00:00:05]} Kf7 {[%clk 00:42:18]} {[%emt 00:00:20]} 27. Rc6 {[%clk 01:05:07]}
{[%emt 00:01:10]} g6 {[%clk 00:41:46]} {[%emt 00:01:02]} 28. Kf3 {[%clk
01:02:33]} {[%emt 00:03:05]} h5 {[%clk 00:39:22]} {[%emt 00:02:54]} 29. Ra6
{[%clk 01:01:03]} {[%emt 00:01:59]} 1/2-1/2

[Event "NJSK 2022 Jeugd B"]
[Site "Almelo, Netherlands"]
[Date "2022.05.07"]
[Round "7.6"]
[White "Blom, Rens"]
[Black "De Rooij, Kevin"]
[Result "1-0"]
[TimeControl "90min/40moves + 30min + 30sec/move"]
[WhiteElo "1699"]
[BlackElo "1584"]

1. c4 {[%clk 01:30:58]} {[%emt 00:00:02]} e5 {[%clk 01:30:53]} {[%emt
00:00:07]} 2. Nc3 {[%clk 01:31:23]} {[%emt 00:00:04]} Nf6 {[%clk 01:31:16]}
{[%emt 00:00:08]} 3. Nf3 {[%clk 01:31:45]} {[%emt 00:00:07]} Nc6 {[%clk
01:31:36]} {[%emt 00:00:10]} 4. e4 {[%clk 01:32:07]} {[%emt 00:00:08]} Bc5
{[%clk 01:31:02]} {[%emt 00:01:05]} 5. Nxe5 {[%clk 01:32:28]} {[%emt 00:00:09]}
Nxe5 {[%clk 01:31:26]} {[%emt 00:00:05]} 6. d4 {[%clk 01:32:56]} {[%emt
00:00:04]} Bb4 {[%clk 01:31:51]} {[%emt 00:00:03]} 7. dxe5 {[%clk 01:33:20]}
{[%emt 00:00:06]} Nxe4 {[%clk 01:32:09]} {[%emt 00:00:11]} 8. Qd4 {[%clk
01:33:35]} {[%emt 00:00:15]} Nxc3 {[%clk 01:31:22]} {[%emt 00:01:17]} 9. bxc3
{[%clk 01:33:56]} {[%emt 00:00:09]} Be7 {[%clk 01:30:34]} {[%emt 00:01:18]} 10.
Qg4 {[%clk 01:34:11]} {[%emt 00:00:16]} g6 {[%clk 01:27:15]} {[%emt 00:03:49]}
11. Qg3 {[%clk 01:24:53]} {[%emt 00:09:48]} d6 {[%clk 01:23:28]} {[%emt
00:04:16]} 12. Ba3 {[%clk 01:18:51]} {[%emt 00:06:32]} dxe5 {[%clk 01:04:16]}
{[%emt 00:19:42]} 13. Qxe5 {[%clk 01:12:47]} {[%emt 00:06:34]} f6 {[%clk
01:04:18]} {[%emt 00:00:28]} 14. Qe3 {[%clk 01:12:54]} {[%emt 00:00:23]} Kf7
{[%clk 01:03:53]} {[%emt 00:00:56]} 15. Rd1 {[%clk 01:05:22]} {[%emt 00:08:03]}
Bd7 {[%clk 01:01:32]} {[%emt 00:02:50]} 16. c5 {[%clk 01:03:59]} {[%emt
00:01:54]} Re8 {[%clk 00:56:05]} {[%emt 00:05:56]} 17. Bc4+ {[%clk 01:02:42]}
{[%emt 00:01:47]} Kg7 {[%clk 00:56:24]} {[%emt 00:00:11]} 18. O-O {[%clk
00:56:33]} {[%emt 00:06:38]} Qc8 {[%clk 00:55:25]} {[%emt 00:01:30]} 19. c6
{[%clk 00:50:08]} {[%emt 00:06:55]} Bxc6 {[%clk 00:50:21]} {[%emt 00:05:33]} 20.
Bxe7 {[%clk 00:50:22]} {[%emt 00:00:17]} Bxg2 {[%clk 00:50:24]} {[%emt
00:00:27]} 21. Bxf6+ {[%clk 00:39:48]} {[%emt 00:11:05]} Kxf6 {[%clk 00:49:54]}
{[%emt 00:00:59]} 22. Qf4+ {[%clk 00:40:13]} {[%emt 00:00:05]} Kg7 {[%clk
00:49:57]} {[%emt 00:00:27]} 23. Kxg2 {[%clk 00:39:39]} {[%emt 00:01:04]} Rf8
{[%clk 00:49:20]} {[%emt 00:01:06]} 24. Qe5+ {[%clk 00:37:27]} {[%emt
00:02:43]} Kh6 {[%clk 00:48:51]} {[%emt 00:00:59]} 25. Rd3 {[%clk 00:35:59]}
{[%emt 00:01:58]} Rf5 {[%clk 00:44:51]} {[%emt 00:04:30]} 26. Rh3+ {[%clk
00:35:53]} {[%emt 00:00:36]} Rh5 {[%clk 00:45:20]} 27. Rxh5+ {[%clk 00:36:15]}
{[%emt 00:00:08]} gxh5 {[%clk 00:45:45]} {[%emt 00:00:05]} 28. Qf6# {[%clk
00:36:06]} {[%emt 00:00:07]} 1-0